[Event "*** Titled Tuesday Blitz"]
[Site "Chess.com"]
[Date "2020.12.01"]
[Round "9"]
[White "GMStefanova"]
[Black "Tssunami"]
[Result "1/2-1/2"]
[WhiteElo "2532"]
[BlackElo "2436"]
[TimeControl "180+1"]
[EndTime "11:44:47 PST"]
[Termination "Game drawn by stalemate"]

1. d4 {[%clk 0:03:00.9]} 1... Nf6 {[%clk 0:02:53.1]} 2. Nf3 {[%clk 0:03:00.3]}
2... e6 {[%clk 0:02:53]} 3. e3 {[%clk 0:02:59.7]} 3... c5 {[%clk 0:02:53.2]} 4.
Bd3 {[%clk 0:02:57.5]} 4... b6 {[%clk 0:02:53.2]} 5. O-O {[%clk 0:02:56.2]} 5...
Bb7 {[%clk 0:02:53]} 6. c4 {[%clk 0:02:55.9]} 6... Be7 {[%clk 0:02:52.2]} 7. Nc3
{[%clk 0:02:55.9]} 7... d5 {[%clk 0:02:51.5]} 8. cxd5 {[%clk 0:02:52.2]} 8...
exd5 {[%clk 0:02:50.8]} 9. dxc5 {[%clk 0:02:38.5]} 9... bxc5 {[%clk 0:02:48.7]}
10. Bb5+ {[%clk 0:02:35.7]} 10... Nc6 {[%clk 0:02:37.7]} 11. Ne5 {[%clk
0:02:32.3]} 11... Rc8 {[%clk 0:02:33.5]} 12. Qa4 {[%clk 0:02:30]} 12... Qc7
{[%clk 0:02:28.4]} 13. Nxc6 {[%clk 0:02:24.2]} 13... Bxc6 {[%clk 0:02:27.8]} 14.
Rd1 {[%clk 0:02:03.3]} 14... O-O {[%clk 0:01:10.4]} 15. Bxc6 {[%clk 0:02:01.7]}
15... Qxc6 {[%clk 0:01:02.7]} 16. Qxc6 {[%clk 0:02:01.2]} 16... Rxc6 {[%clk
0:01:03.6]} 17. Nxd5 {[%clk 0:02:01]} 17... Nxd5 {[%clk 0:01:01.8]} 18. Rxd5
{[%clk 0:02:01.1]} 18... Bf6 {[%clk 0:01:02.1]} 19. Rb1 {[%clk 0:01:53.7]} 19...
c4 {[%clk 0:00:57.7]} 20. e4 {[%clk 0:01:48.7]} 20... Re8 {[%clk 0:00:36.9]} 21.
f3 {[%clk 0:01:47.5]} 21... h6 {[%clk 0:00:29.9]} 22. Be3 {[%clk 0:01:43.6]}
22... Rb8 {[%clk 0:00:23.6]} 23. e5 {[%clk 0:01:35.5]} 23... Be7 {[%clk
0:00:16.5]} 24. Rdd1 {[%clk 0:01:05.6]} 24... a5 {[%clk 0:00:14.1]} 25. Rdc1
{[%clk 0:01:01]} 25... a4 {[%clk 0:00:13.2]} 26. Bd4 {[%clk 0:00:57.7]} 26...
Rd8 {[%clk 0:00:11]} 27. Bc3 {[%clk 0:00:57]} 27... Rd3 {[%clk 0:00:10.9]} 28.
Rd1 {[%clk 0:00:54.5]} 28... Bc5+ {[%clk 0:00:10.6]} 29. Kf1 {[%clk 0:00:53.5]}
29... Re3 {[%clk 0:00:07.8]} 30. Re1 {[%clk 0:00:50.1]} 30... Rd3 {[%clk
0:00:04.9]} 31. Rbd1 {[%clk 0:00:49.7]} 31... a3 {[%clk 0:00:05.2]} 32. Rxd3
{[%clk 0:00:45.3]} 32... cxd3 {[%clk 0:00:04.9]} 33. Rd1 {[%clk 0:00:35]} 33...
axb2 {[%clk 0:00:04.2]} 34. Bxb2 {[%clk 0:00:34.5]} 34... Rb6 {[%clk 0:00:04.3]}
35. Bc3 {[%clk 0:00:33.9]} 35... Ra6 {[%clk 0:00:04.7]} 36. Rxd3 {[%clk
0:00:22.3]} 36... Rxa2 {[%clk 0:00:04.9]} 37. Rd2 {[%clk 0:00:20]} 37... Ra3
{[%clk 0:00:04.5]} 38. Bd4 {[%clk 0:00:19.6]} 38... Bxd4 {[%clk 0:00:03.2]} 39.
Rxd4 {[%clk 0:00:19.6]} 39... Ra2 {[%clk 0:00:03.8]} 40. f4 {[%clk 0:00:18.5]}
40... Kh7 {[%clk 0:00:03.4]} 41. h4 {[%clk 0:00:15.5]} 41... Ra5 {[%clk
0:00:02.8]} 42. Kf2 {[%clk 0:00:13.8]} 42... Ra3 {[%clk 0:00:02.8]} 43. g4
{[%clk 0:00:12.7]} 43... h5 {[%clk 0:00:03.2]} 44. gxh5 {[%clk 0:00:10.7]} 44...
Rh3 {[%clk 0:00:03.3]} 45. Rd7 {[%clk 0:00:09.5]} 45... Kg8 {[%clk 0:00:02]} 46.
h6 {[%clk 0:00:08.3]} 46... Rxh4 {[%clk 0:00:02]} 47. hxg7 {[%clk 0:00:05.9]}
47... Rxf4+ {[%clk 0:00:01.8]} 48. Ke3 {[%clk 0:00:06.1]} 48... Rh4 {[%clk
0:00:01.8]} 49. Kf3 {[%clk 0:00:05.8]} 49... Kxg7 {[%clk 0:00:02]} 50. e6 {[%clk
0:00:05.8]} 50... Kf8 {[%clk 0:00:02.2]} 51. Rxf7+ {[%clk 0:00:05.6]} 51... Ke8
{[%clk 0:00:02.5]} 52. Rf4 {[%clk 0:00:05.6]} 52... Rxf4+ {[%clk 0:00:02.3]} 53.
Kxf4 {[%clk 0:00:05.5]} 53... Ke7 {[%clk 0:00:03.2]} 54. Ke5 {[%clk 0:00:04.1]}
54... Ke8 {[%clk 0:00:04.1]} 55. Kf6 {[%clk 0:00:04.1]} 55... Kf8 {[%clk
0:00:04.3]} 56. e7+ {[%clk 0:00:04.4]} 56... Ke8 {[%clk 0:00:04.6]} 57. Ke6
{[%clk 0:00:04.7]} 1/2-1/2

[Event "*** Titled Tuesday Blitz"]
[Site "Chess.com"]
[Date "2020.12.01"]
[Round "9"]
[White "Lysiak_Poltorak"]
[Black "LionTheLeon_06"]
[Result "0-1"]
[WhiteElo "2361"]
[BlackElo "2608"]
[TimeControl "180+1"]
[EndTime "11:44:50 PST"]
[Termination "LionTheLeon_06 won by resignation"]

1. d4 {[%clk 0:03:00.9]} 1... Nf6 {[%clk 0:02:59.1]} 2. c4 {[%clk 0:02:56.7]}
2... c5 {[%clk 0:02:59.2]} 3. d5 {[%clk 0:02:55.7]} 3... b5 {[%clk 0:02:53.6]}
4. Qc2 {[%clk 0:02:55.3]} 4... bxc4 {[%clk 0:02:50.6]} 5. e4 {[%clk 0:02:53]}
5... g6 {[%clk 0:02:50]} 6. Bxc4 {[%clk 0:02:52.2]} 6... Bg7 {[%clk 0:02:50.2]}
7. Nf3 {[%clk 0:02:52.9]} 7... d6 {[%clk 0:02:50.4]} 8. Bd2 {[%clk 0:02:53]}
8... O-O {[%clk 0:02:50.5]} 9. Bc3 {[%clk 0:02:53.4]} 9... Ba6 {[%clk
0:02:47.6]} 10. Na3 {[%clk 0:02:53.3]} 10... Nfd7 {[%clk 0:02:38.9]} 11. O-O
{[%clk 0:02:44.1]} 11... Nb6 {[%clk 0:02:38.8]} 12. Nd2 {[%clk 0:02:33.5]} 12...
Nxc4 {[%clk 0:02:37.6]} 13. Naxc4 {[%clk 0:02:31.1]} 13... Nd7 {[%clk
0:02:38.1]} 14. Bxg7 {[%clk 0:02:30.2]} 14... Kxg7 {[%clk 0:02:37.9]} 15. f4
{[%clk 0:02:30.9]} 15... Nb6 {[%clk 0:02:36.8]} 16. Qc3+ {[%clk 0:02:30.4]}
16... Kg8 {[%clk 0:02:36.6]} 17. Rad1 {[%clk 0:02:27.3]} 17... Rb8 {[%clk
0:02:35.7]} 18. b3 {[%clk 0:02:25.8]} 18... Qd7 {[%clk 0:02:33.5]} 19. Rfe1
{[%clk 0:02:23.1]} 19... Nxc4 {[%clk 0:02:30.6]} 20. Nxc4 {[%clk 0:02:23.1]}
20... Bxc4 {[%clk 0:02:31]} 21. Qxc4 {[%clk 0:02:15.8]} 21... Rb4 {[%clk
0:02:30.2]} 22. Qc3 {[%clk 0:02:15.8]} 22... Rfb8 {[%clk 0:02:29.3]} 23. e5
{[%clk 0:02:15.7]} 23... Rxf4 {[%clk 0:02:28.9]} 24. e6 {[%clk 0:02:10.1]} 24...
fxe6 {[%clk 0:02:26.4]} 25. Rxe6 {[%clk 0:02:09.4]} 25... Rbf8 {[%clk
0:02:26.4]} 26. Rde1 {[%clk 0:02:08.7]} 26... Qb5 {[%clk 0:02:20.7]} 27. Qc1
{[%clk 0:01:53.7]} 27... Qd3 {[%clk 0:02:14.7]} 28. Rxe7 {[%clk 0:01:45.4]}
28... Qxd5 {[%clk 0:02:08.9]} 29. R7e2 {[%clk 0:00:49.1]} 29... Qd4+ {[%clk
0:02:04.3]} 30. Kh1 {[%clk 0:00:48.6]} 30... a5 {[%clk 0:02:03.2]} 31. h3 {[%clk
0:00:40.5]} 31... Rf2 {[%clk 0:01:22.7]} 32. Rxf2 {[%clk 0:00:22.6]} 32... Rxf2
{[%clk 0:01:21.9]} 33. Qg5 {[%clk 0:00:20]} 33... Rf7 {[%clk 0:01:03.1]} 34. Qh6
{[%clk 0:00:14.9]} 34... Rf8 {[%clk 0:00:51.4]} 35. Re7 {[%clk 0:00:04.8]} 35...
Rf1+ {[%clk 0:00:49.1]} 36. Kh2 {[%clk 0:00:05.3]} 36... Qf4+ {[%clk 0:00:44.7]}
37. Qxf4 {[%clk 0:00:05.7]} 37... Rxf4 {[%clk 0:00:45.6]} 38. Ra7 {[%clk
0:00:05.8]} 38... Rf2 {[%clk 0:00:32.6]} 39. Rxa5 {[%clk 0:00:05.4]} 39... Kf7
{[%clk 0:00:32.9]} 40. Kg3 {[%clk 0:00:05.9]} 40... Rc2 {[%clk 0:00:29.9]} 41.
Ra7+ {[%clk 0:00:06]} 41... Ke6 {[%clk 0:00:29.8]} 42. Rxh7 {[%clk 0:00:06]}
42... Rxa2 {[%clk 0:00:30.1]} 43. Rg7 {[%clk 0:00:04.8]} 43... Rb2 {[%clk
0:00:30.3]} 44. Rxg6+ {[%clk 0:00:05.1]} 44... Ke5 {[%clk 0:00:30]} 45. h4
{[%clk 0:00:04.7]} 45... Rxb3+ {[%clk 0:00:29]} 46. Kg4 {[%clk 0:00:04]} 46...
c4 {[%clk 0:00:28.5]} 47. h5 {[%clk 0:00:04.5]} 47... c3 {[%clk 0:00:28.5]} 48.
Rg8 {[%clk 0:00:05.1]} 48... d5 {[%clk 0:00:21.2]} 49. Rc8 {[%clk 0:00:04.7]}
49... d4 {[%clk 0:00:20.6]} 50. h6 {[%clk 0:00:05]} 50... Rb7 {[%clk 0:00:20.8]}
51. Kg5 {[%clk 0:00:05.2]} 51... Ke4 {[%clk 0:00:20.5]} 52. Kg6 {[%clk 0:00:04]}
52... d3 {[%clk 0:00:13.8]} 53. h7 {[%clk 0:00:03.8]} 53... Rxh7 {[%clk
0:00:13]} 54. Rxc3 {[%clk 0:00:03.9]} 54... Rd7 {[%clk 0:00:11.6]} 55. Rc1
{[%clk 0:00:03.6]} 55... d2 {[%clk 0:00:10.7]} 56. Ra1 {[%clk 0:00:04.1]} 56...
d1=Q {[%clk 0:00:10.4]} 57. Rxd1 {[%clk 0:00:03.6]} 57... Rxd1 {[%clk
0:00:11.3]} 58. g4 {[%clk 0:00:04.2]} 58... Rg1 {[%clk 0:00:11.8]} 59. g5 {[%clk
0:00:04.6]} 59... Kf4 {[%clk 0:00:12.3]} 0-1

[Event "*** Titled Tuesday Blitz"]
[Site "Chess.com"]
[Date "2020.12.01"]
[Round "9"]
[White "youngKID"]
[Black "Kildepiotr"]
[Result "1-0"]
[WhiteElo "2853"]
[BlackElo "2643"]
[TimeControl "180+1"]
[EndTime "11:44:54 PST"]
[Termination "youngKID won by resignation"]

1. e4 {[%clk 0:03:00.9]} 1... g6 {[%clk 0:02:59.6]} 2. d4 {[%clk 0:02:59.9]}
2... Bg7 {[%clk 0:02:59.7]} 3. Nf3 {[%clk 0:02:59.8]} 3... c6 {[%clk 0:03:00]}
4. Nc3 {[%clk 0:02:57.9]} 4... d6 {[%clk 0:03:00.1]} 5. Bc4 {[%clk 0:02:56.4]}
5... Nf6 {[%clk 0:02:58.4]} 6. Qe2 {[%clk 0:02:55.8]} 6... b5 {[%clk 0:02:56.9]}
7. Bb3 {[%clk 0:02:54]} 7... b4 {[%clk 0:02:57]} 8. Nb1 {[%clk 0:02:46.5]} 8...
Ba6 {[%clk 0:02:56]} 9. Qe3 {[%clk 0:02:47]} 9... O-O {[%clk 0:02:53.6]} 10. h3
{[%clk 0:02:45.8]} 10... Nbd7 {[%clk 0:02:49.7]} 11. a3 {[%clk 0:02:42.7]} 11...
bxa3 {[%clk 0:02:40.2]} 12. Rxa3 {[%clk 0:02:41.5]} 12... Qb6 {[%clk 0:02:38]}
13. Nc3 {[%clk 0:02:24.9]} 13... e5 {[%clk 0:02:31.6]} 14. dxe5 {[%clk
0:02:18.4]} 14... Nxe5 {[%clk 0:02:30.8]} 15. Nxe5 {[%clk 0:02:17.2]} 15... dxe5
{[%clk 0:02:30.6]} 16. Na4 {[%clk 0:02:13.4]} 16... Qb4+ {[%clk 0:02:24.1]} 17.
Nc3 {[%clk 0:01:55.4]} 17... Qb6 {[%clk 0:02:23.2]} 18. f3 {[%clk 0:01:26.3]}
18... Nh5 {[%clk 0:02:16.1]} 19. Kf2 {[%clk 0:01:21.4]} 19... Nf4 {[%clk
0:02:11]} 20. Qxb6 {[%clk 0:01:11.2]} 20... axb6 {[%clk 0:02:11.9]} 21. Be3
{[%clk 0:01:11.8]} 21... b5 {[%clk 0:01:58.7]} 22. Rha1 {[%clk 0:01:11.5]} 22...
Bb7 {[%clk 0:01:58.6]} 23. Ra7 {[%clk 0:01:09.6]} 23... Ne6 {[%clk 0:01:39.7]}
24. Bxe6 {[%clk 0:01:01.2]} 24... fxe6 {[%clk 0:01:40.6]} 25. Ne2 {[%clk
0:01:01.7]} 25... Rfd8 {[%clk 0:01:30.4]} 26. Nc1 {[%clk 0:01:00.3]} 26... Bf8
{[%clk 0:01:26.4]} 27. Nd3 {[%clk 0:00:59.8]} 27... Bd6 {[%clk 0:01:26.5]} 28.
Ke2 {[%clk 0:00:55.3]} 28... Rxa7 {[%clk 0:01:16.7]} 29. Rxa7 {[%clk 0:00:56.2]}
29... Rd7 {[%clk 0:01:16.9]} 30. Bd2 {[%clk 0:00:48.4]} 30... Kf7 {[%clk
0:01:10.7]} 31. Bc3 {[%clk 0:00:47.5]} 31... Bc8 {[%clk 0:01:04.7]} 32. Ra1
{[%clk 0:00:44.4]} 32... c5 {[%clk 0:00:59.2]} 33. Ke3 {[%clk 0:00:38.5]} 33...
c4 {[%clk 0:00:55.1]} 34. Nxe5+ {[%clk 0:00:38.4]} 34... Bxe5 {[%clk 0:00:55.3]}
35. Bxe5 {[%clk 0:00:39.3]} 35... Bb7 {[%clk 0:00:53.3]} 36. Ra5 {[%clk
0:00:38]} 36... Bc6 {[%clk 0:00:53.2]} 37. Ra6 {[%clk 0:00:38.5]} 37... Bb7
{[%clk 0:00:44.9]} 38. Rb6 {[%clk 0:00:38.8]} 38... g5 {[%clk 0:00:42.1]} 39.
Rxb5 {[%clk 0:00:37.6]} 39... Ba6 {[%clk 0:00:42.4]} 40. Rb6 {[%clk 0:00:37.3]}
40... Bb7 {[%clk 0:00:39.9]} 41. g3 {[%clk 0:00:35.2]} 41... h5 {[%clk
0:00:38.7]} 42. h4 {[%clk 0:00:33.6]} 42... gxh4 {[%clk 0:00:38.5]} 43. gxh4
{[%clk 0:00:34.5]} 43... Ke7 {[%clk 0:00:37.7]} 44. Bf4 {[%clk 0:00:32.2]} 44...
Kf6 {[%clk 0:00:34.5]} 45. Bg5+ {[%clk 0:00:31.6]} 45... Kf7 {[%clk 0:00:34.8]}
46. f4 {[%clk 0:00:31.3]} 46... Rc7 {[%clk 0:00:34.4]} 47. Kd4 {[%clk
0:00:24.2]} 47... Bc8 {[%clk 0:00:25.2]} 48. Ke3 {[%clk 0:00:17.9]} 48... Bd7
{[%clk 0:00:23.9]} 49. f5 {[%clk 0:00:14.3]} 49... exf5 {[%clk 0:00:23.6]} 50.
exf5 {[%clk 0:00:15.2]} 50... Rc6 {[%clk 0:00:22.2]} 51. Rb7 {[%clk 0:00:15.4]}
51... Rd6 {[%clk 0:00:22.3]} 52. Rc7 {[%clk 0:00:08.6]} 52... Rd1 {[%clk
0:00:18.3]} 53. f6 {[%clk 0:00:08.3]} 53... Ke6 {[%clk 0:00:12.9]} 54. Rxc4
{[%clk 0:00:08.3]} 54... Re1+ {[%clk 0:00:12.5]} 55. Kd2 {[%clk 0:00:08.3]}
55... Rh1 {[%clk 0:00:11.4]} 56. Re4+ {[%clk 0:00:08.4]} 56... Kf5 {[%clk
0:00:11.6]} 57. Re7 {[%clk 0:00:08.8]} 57... Be6 {[%clk 0:00:10.7]} 58. f7
{[%clk 0:00:09.1]} 1-0

[Event "*** Titled Tuesday Blitz"]
[Site "Chess.com"]
[Date "2020.12.01"]
[Round "9"]
[White "PawnEatingZombie"]
[Black "tteshan"]
[Result "1-0"]
[WhiteElo "2200"]
[BlackElo "2361"]
[TimeControl "180+1"]
[EndTime "11:44:54 PST"]
[Termination "PawnEatingZombie won by resignation"]

1. d4 {[%clk 0:03:00.9]} 1... d5 {[%clk 0:02:58.7]} 2. c4 {[%clk 0:03:00.9]}
2... dxc4 {[%clk 0:02:56.8]} 3. e4 {[%clk 0:03:00.4]} 3... e5 {[%clk 0:02:55.1]}
4. Nf3 {[%clk 0:02:59.9]} 4... exd4 {[%clk 0:02:55]} 5. Bxc4 {[%clk 0:02:59.8]}
5... Bb4+ {[%clk 0:02:55.1]} 6. Nbd2 {[%clk 0:02:56.6]} 6... Nc6 {[%clk
0:02:31.2]} 7. O-O {[%clk 0:02:54.8]} 7... Nge7 {[%clk 0:02:28.9]} 8. Nb3 {[%clk
0:02:52.6]} 8... O-O {[%clk 0:02:24.3]} 9. Nbxd4 {[%clk 0:02:44.8]} 9... Bg4
{[%clk 0:02:23.1]} 10. Nxc6 {[%clk 0:02:27.7]} 10... Nxc6 {[%clk 0:02:24]} 11.
h3 {[%clk 0:02:27.6]} 11... Qxd1 {[%clk 0:02:10.3]} 12. Rxd1 {[%clk 0:02:26.1]}
12... Bxf3 {[%clk 0:02:10.8]} 13. gxf3 {[%clk 0:02:26.3]} 13... Ne5 {[%clk
0:02:11.3]} 14. Be2 {[%clk 0:02:26.5]} 14... Rad8 {[%clk 0:02:10.4]} 15. Bf4
{[%clk 0:02:24.1]} 15... f6 {[%clk 0:02:01.1]} 16. Be3 {[%clk 0:02:21.1]} 16...
a6 {[%clk 0:01:49.1]} 17. f4 {[%clk 0:02:17.2]} 17... Nc6 {[%clk 0:01:49.4]} 18.
Bc4+ {[%clk 0:02:09.5]} 18... Kh8 {[%clk 0:01:49.3]} 19. Bd5 {[%clk 0:02:10]}
19... Bd6 {[%clk 0:00:28.7]} 20. Bxc6 {[%clk 0:01:57.8]} 20... bxc6 {[%clk
0:00:29.6]} 21. Rac1 {[%clk 0:01:57.7]} 21... Rb8 {[%clk 0:00:28.8]} 22. b3
{[%clk 0:01:56.3]} 22... Rb5 {[%clk 0:00:19.7]} 23. Rxc6 {[%clk 0:01:53.7]}
23... a5 {[%clk 0:00:19.9]} 24. Rc4 {[%clk 0:01:48.2]} 24... h6 {[%clk
0:00:18.7]} 25. Kg2 {[%clk 0:01:46.8]} 25... Re8 {[%clk 0:00:16.7]} 26. Kf3
{[%clk 0:01:44]} 26... Kh7 {[%clk 0:00:16.8]} 27. Rd3 {[%clk 0:01:34.2]} 27...
Rh5 {[%clk 0:00:17]} 28. Kg2 {[%clk 0:01:33.2]} 28... Rb5 {[%clk 0:00:17.2]} 29.
f5 {[%clk 0:01:15.1]} 29... Kg8 {[%clk 0:00:17]} 30. Kf3 {[%clk 0:01:14.9]}
30... Kf7 {[%clk 0:00:17.4]} 31. h4 {[%clk 0:01:13.1]} 31... h5 {[%clk
0:00:16.4]} 32. Bf4 {[%clk 0:01:01.9]} 32... Bxf4 {[%clk 0:00:08.8]} 33. Kxf4
{[%clk 0:01:02.8]} 33... Re7 {[%clk 0:00:08.1]} 34. Rdc3 {[%clk 0:00:56.9]}
34... Rbe5 {[%clk 0:00:07.5]} 35. f3 {[%clk 0:00:56.6]} 35... Kg8 {[%clk
0:00:03.8]} 36. Rxc7 {[%clk 0:00:55.9]} 36... Re8 {[%clk 0:00:04.4]} 37. Rc8
{[%clk 0:00:55.2]} 37... Kf7 {[%clk 0:00:04]} 38. Rxe8 {[%clk 0:00:54.6]} 38...
Kxe8 {[%clk 0:00:04.9]} 39. Rc7 {[%clk 0:00:51.8]} 39... Kf8 {[%clk 0:00:05.3]}
40. Rb7 {[%clk 0:00:43.9]} 40... Rc5 {[%clk 0:00:05.4]} 41. a4 {[%clk
0:00:41.7]} 41... Kg8 {[%clk 0:00:04.5]} 42. Rb5 {[%clk 0:00:40.9]} 42... Rc3
{[%clk 0:00:04.9]} 43. Rxa5 {[%clk 0:00:23.6]} 43... Rxb3 {[%clk 0:00:05]} 44.
Ra8+ {[%clk 0:00:23.3]} 44... Kf7 {[%clk 0:00:03.9]} 45. a5 {[%clk 0:00:16.7]}
45... Ra3 {[%clk 0:00:03.3]} 46. a6 {[%clk 0:00:17.3]} 46... Ra1 {[%clk
0:00:03.4]} 47. a7 {[%clk 0:00:17.5]} 47... Ra2 {[%clk 0:00:03.7]} 48. Ke3
{[%clk 0:00:15.2]} 48... Ra1 {[%clk 0:00:03.9]} 49. Kd4 {[%clk 0:00:15]} 49...
Rd1+ {[%clk 0:00:04]} 50. Ke3 {[%clk 0:00:13.5]} 50... Ra1 {[%clk 0:00:04.4]}
51. f4 {[%clk 0:00:11.6]} 51... Ra2 {[%clk 0:00:04.5]} 52. e5 {[%clk 0:00:11.6]}
52... Ra3+ {[%clk 0:00:03.7]} 53. Kd2 {[%clk 0:00:10.3]} 53... Ra2+ {[%clk
0:00:03.7]} 54. Kc3 {[%clk 0:00:10.3]} 54... fxe5 {[%clk 0:00:04.4]} 55. fxe5
{[%clk 0:00:09.9]} 55... g6 {[%clk 0:00:04.3]} 56. e6+ {[%clk 0:00:09.7]} 56...
Kg7 {[%clk 0:00:04.7]} 57. f6+ {[%clk 0:00:09.4]} 57... Kxf6 {[%clk 0:00:04.6]}
58. Rf8+ {[%clk 0:00:09.9]} 58... Kxe6 {[%clk 0:00:05.2]} 59. a8=Q {[%clk
0:00:10.5]} 59... Rxa8 {[%clk 0:00:05.2]} 60. Rxa8 {[%clk 0:00:10.3]} 60... Kf5
{[%clk 0:00:05.8]} 61. Kd3 {[%clk 0:00:10.8]} 61... Kg4 {[%clk 0:00:05.8]} 62.
Ke3 {[%clk 0:00:11.3]} 62... Kxh4 {[%clk 0:00:05.8]} 63. Kf3 {[%clk 0:00:11.9]}
63... g5 {[%clk 0:00:05.9]} 64. Kg2 {[%clk 0:00:12.3]} 64... g4 {[%clk
0:00:05.7]} 65. Rh8 {[%clk 0:00:11.1]} 65... Kg5 {[%clk 0:00:06.1]} 66. Kg3
{[%clk 0:00:11.5]} 1-0

[Event "*** Titled Tuesday Blitz"]
[Site "Chess.com"]
[Date "2020.12.01"]
[Round "9"]
[White "natelleka"]
[Black "Skat2704"]
[Result "1-0"]
[WhiteElo "2204"]
[BlackElo "2333"]
[TimeControl "180+1"]
[EndTime "11:44:57 PST"]
[Termination "natelleka won by resignation"]

1. e4 {[%clk 0:02:48.5]} 1... c6 {[%clk 0:02:59.4]} 2. d4 {[%clk 0:02:47.8]}
2... d5 {[%clk 0:02:58.2]} 3. f3 {[%clk 0:02:48.1]} 3... e6 {[%clk 0:02:57.1]}
4. Nc3 {[%clk 0:02:47]} 4... Bb4 {[%clk 0:02:56.8]} 5. Bf4 {[%clk 0:02:44.3]}
5... Ne7 {[%clk 0:02:51.9]} 6. Ne2 {[%clk 0:02:36.9]} 6... Ng6 {[%clk
0:02:49.2]} 7. Bg3 {[%clk 0:02:36.4]} 7... O-O {[%clk 0:02:48.4]} 8. Qd2 {[%clk
0:02:35.2]} 8... c5 {[%clk 0:02:43.3]} 9. h4 {[%clk 0:02:29.4]} 9... Nc6 {[%clk
0:02:37.8]} 10. h5 {[%clk 0:02:22.8]} 10... Nge7 {[%clk 0:02:36.5]} 11. a3
{[%clk 0:01:53.4]} 11... Ba5 {[%clk 0:02:32.5]} 12. O-O-O {[%clk 0:01:27.7]}
12... dxe4 {[%clk 0:02:24.7]} 13. dxc5 {[%clk 0:01:24.6]} 13... Qxd2+ {[%clk
0:02:21]} 14. Rxd2 {[%clk 0:01:23.9]} 14... exf3 {[%clk 0:02:20.5]} 15. gxf3
{[%clk 0:01:23.7]} 15... Nf5 {[%clk 0:02:16.7]} 16. Bh2 {[%clk 0:01:19]} 16...
e5 {[%clk 0:02:12.5]} 17. b4 {[%clk 0:01:15.7]} 17... Bd8 {[%clk 0:02:07.8]} 18.
Ne4 {[%clk 0:01:06.5]} 18... Ncd4 {[%clk 0:02:04.9]} 19. Nxd4 {[%clk 0:01:00]}
19... Nxd4 {[%clk 0:02:04.2]} 20. Rf2 {[%clk 0:00:56.2]} 20... f5 {[%clk
0:01:43.4]} 21. Nd6 {[%clk 0:00:45.6]} 21... Bg5+ {[%clk 0:01:40]} 22. Kb2
{[%clk 0:00:40.4]} 22... Be3 {[%clk 0:01:38.1]} 23. Bc4+ {[%clk 0:00:35.8]}
23... Be6 {[%clk 0:01:37.4]} 24. Bxe6+ {[%clk 0:00:33.6]} 24... Nxe6 {[%clk
0:01:36.8]} 25. Re2 {[%clk 0:00:31.8]} 25... f4 {[%clk 0:01:33.9]} 26. Nxb7
{[%clk 0:00:22.2]} 26... Rab8 {[%clk 0:01:31.9]} 27. c6 {[%clk 0:00:15.1]} 27...
Rfc8 {[%clk 0:01:28.1]} 28. Na5 {[%clk 0:00:09.8]} 28... Nd4 {[%clk 0:01:25.3]}
29. Ree1 {[%clk 0:00:09.1]} 29... Nxc6 {[%clk 0:01:24.5]} 30. Nxc6 {[%clk
0:00:09.4]} 30... Rxc6 {[%clk 0:01:24.3]} 31. Bg1 {[%clk 0:00:09.5]} 31... Rbc8
{[%clk 0:01:23.2]} 32. Re2 {[%clk 0:00:09.5]} 32... Rc3 {[%clk 0:01:11.7]} 33.
Bxe3 {[%clk 0:00:09.3]} 33... fxe3 {[%clk 0:01:10.8]} 34. Rhe1 {[%clk
0:00:09.5]} 34... Kf7 {[%clk 0:01:10]} 35. Kb1 {[%clk 0:00:09.4]} 35... Rxa3
{[%clk 0:01:06.5]} 36. Rxe3 {[%clk 0:00:09.5]} 36... Rxe3 {[%clk 0:01:06.3]} 37.
Rxe3 {[%clk 0:00:09.8]} 37... Kf6 {[%clk 0:01:06.5]} 38. Kb2 {[%clk 0:00:09.4]}
38... Kf5 {[%clk 0:01:04.7]} 39. Kb3 {[%clk 0:00:09.4]} 39... g6 {[%clk
0:00:57.2]} 40. hxg6 {[%clk 0:00:09.2]} 40... hxg6 {[%clk 0:00:56.9]} 41. c4
{[%clk 0:00:09.6]} 41... g5 {[%clk 0:00:56.2]} 42. c5 {[%clk 0:00:09.2]} 42...
Kf4 {[%clk 0:00:54.5]} 43. Re4+ {[%clk 0:00:09.3]} 43... Kxf3 {[%clk 0:00:54.4]}
44. Rxe5 {[%clk 0:00:09.8]} 44... g4 {[%clk 0:00:54.6]} 45. Kc4 {[%clk 0:00:08]}
45... g3 {[%clk 0:00:54.5]} 46. Rf5+ {[%clk 0:00:07.7]} 46... Ke4 {[%clk
0:00:52.1]} 47. Rg5 {[%clk 0:00:07.2]} 47... Kf4 {[%clk 0:00:51.6]} 48. Rg6
{[%clk 0:00:07.3]} 48... Kf3 {[%clk 0:00:49.1]} 49. Kd5 {[%clk 0:00:07.1]} 49...
g2 {[%clk 0:00:48.5]} 50. c6 {[%clk 0:00:07]} 50... Kf2 {[%clk 0:00:45.8]} 51.
Kd6 {[%clk 0:00:07.1]} 51... g1=Q {[%clk 0:00:43]} 52. Rxg1 {[%clk 0:00:07.2]}
52... Kxg1 {[%clk 0:00:43]} 53. c7 {[%clk 0:00:07.1]} 53... Rg8 {[%clk 0:00:42]}
54. Kd7 {[%clk 0:00:06.6]} 54... Rg7+ {[%clk 0:00:41.8]} 55. Kc6 {[%clk
0:00:06.8]} 55... Rg8 {[%clk 0:00:41.2]} 56. Kb7 {[%clk 0:00:07.1]} 56... Rg7
{[%clk 0:00:38.6]} 57. Kb8 {[%clk 0:00:06.8]} 57... Rg8+ {[%clk 0:00:35.9]} 58.
c8=Q {[%clk 0:00:06.6]} 58... Rxc8+ {[%clk 0:00:35.9]} 59. Kxc8 {[%clk 0:00:07]}
59... Kf2 {[%clk 0:00:36]} 60. Kb7 {[%clk 0:00:07.3]} 60... Ke3 {[%clk
0:00:36.9]} 61. Kxa7 {[%clk 0:00:07.6]} 61... Kd4 {[%clk 0:00:37.8]} 62. b5
{[%clk 0:00:08]} 62... Kc4 {[%clk 0:00:38.7]} 63. b6 {[%clk 0:00:08.4]} 63...
Kb5 {[%clk 0:00:39.4]} 64. b7 {[%clk 0:00:08.8]} 64... Ka5 {[%clk 0:00:39.7]}
65. b8=Q {[%clk 0:00:08.5]} 1-0